fUSD/lending_fUSD_20260605
["ID","MTS","AMOUNT","RATE_DAILY","PERIOD"]
[424224812,1780673466000,-976.7556371,0.00035125,60]
[424224807,1780673466000,-453.07819494,0.00035116,2]
[424224809,1780673466000,-300.0,0.00035116,2]
[424224813,1780673466000,-152.4350226,0.00035125,60]
[424224823,1780673466000,-500.0,0.00035125,60]
[424224821,1780673466000,-928.2410471,0.00035125,60]
[424224817,1780673466000,-163.5704503,0.00035125,60]
[424224814,1780673466000,-354.258427,0.00035125,60]
[424224815,1780673466000,-500.0,0.00035125,60]
[424224816,1780673466000,-892.8568119,0.00035125,60]
[424224792,1780673466000,-1538.68879769,0.00035116,2]
[424224806,1780673466000,-300.0,0.00035116,2]
[424224791,1780673466000,-539.6552741,0.00035116,2]
[424224765,1780673466000,-3206.51250246,0.00035116,2]
[424224789,1780673466000,-300.0,0.00035116,2]
[424224763,1780673466000,-300.0,0.00035116,2]
[424224762,1780673466000,-300.0,0.00035116,2]
[424224764,1780673466000,-300.0,0.00035116,2]
[424224820,1780673466000,-780.8132809,0.00035125,60]
[424224767,1780673466000,-535.40148659,0.00035116,2]
[424224768,1780673466000,-727.95528898,0.00035116,2]
[424224772,1780673466000,-300.36336253,0.00035116,2]
[424224770,1780673466000,-302.57479324,0.00035116,2]
[424224766,1780673466000,-1069.74260505,0.00035116,2]
[424224773,1780673466000,-301.35684721,0.00035116,2]
[424224769,1780673466000,-300.0,0.00035116,2]
[424224775,1780673466000,-300.0,0.00035116,2]
[424224774,1780673466000,-300.0,0.00035116,2]
[424224800,1780673466000,-595.52105001,0.00035116,2]
[424224771,1780673466000,-300.0,0.00035116,2]
[424224777,1780673466000,-300.0,0.00035116,2]
[424224776,1780673466000,-300.0,0.00035116,2]
[424224780,1780673466000,-300.0,0.00035116,2]
[424224779,1780673466000,-300.0,0.00035116,2]
[424224786,1780673466000,-300.0,0.00035116,2]
[424224782,1780673466000,-528.25355298,0.00035116,2]
[424224784,1780673466000,-300.0,0.00035116,2]
[424224785,1780673466000,-300.0,0.00035116,2]
[424224783,1780673466000,-300.0,0.00035116,2]
[424224778,1780673466000,-300.0,0.00035116,2]
[424224781,1780673466000,-344.84564358,0.00035116,2]
[424224788,1780673466000,-951.46597211,0.00035116,2]
[424224799,1780673466000,-300.0,0.00035116,2]
[424224787,1780673466000,-866.62523856,0.00035116,2]
[424224819,1780673466000,-500.0,0.00035125,60]
[424224875,1780673466000,-2727.0,0.00035364,30]
[424224836,1780673466000,-1000.0,0.00035197,30]
[424224853,1780673466000,-544.57,0.00035249,2]
[424224857,1780673466000,-7166.5335,0.00035282,2]
[424224860,1780673466000,-1949.44271499,0.00035283,2]
[424224854,1780673466000,-624.77,0.00035249,2]
[424224858,1780673466000,-1270.35733563,0.00035283,2]
[424224851,1780673466000,-150.0,0.00035239,30]
[424224869,1780673466000,-150.0,0.00035317,30]
[424224864,1780673466000,-2468.98099067,0.00035283,2]
[424224863,1780673466000,-2132.22477968,0.00035283,2]
[424224865,1780673466000,-150.0,0.00035284,30]
[424224866,1780673466000,-150.0,0.00035284,30]
[424224873,1780673466000,-350.0,0.00035354,4]
[424224870,1780673466000,-150.0,0.00035328,30]
[424224871,1780673466000,-150.0,0.00035343,10]
[424224874,1780673466000,-12969.11848382,0.00035362,2]
[424224867,1780673466000,-150.0,0.00035288,30]
[424224868,1780673466000,-152.0,0.00035295,30]
[424224883,1780673466000,-151.0,0.00035374,7]
[424224877,1780673466000,-864.0,0.00035364,30]
[424224884,1780673466000,-151.0,0.00035374,7]
[424224876,1780673466000,-2740.0,0.00035364,30]
[424224879,1780673466000,-350.0,0.00035367,2]
[424224881,1780673466000,-150.0,0.00035372,30]
[424224880,1780673466000,-150.0,0.00035372,30]
[424224882,1780673466000,-151.0,0.00035374,7]
[424224878,1780673466000,-535.0,0.00035364,30]
[424224818,1780673466000,-500.0,0.00035125,60]
[424224855,1780673466000,-187.43,0.00035249,2]
[424224859,1780673466000,-1255.34401006,0.00035283,2]
[424224872,1780673466000,-300.0,0.00035343,14]
[424224862,1780673466000,-2260.3725286,0.00035283,2]
[424224825,1780673466000,-890.4991091,0.00035125,60]
[424224856,1780673466000,-1301.46881394,0.00035278,2]
[424224830,1780673466000,-150.0,0.00035151,30]
[424224835,1780673466000,-198.395,0.00035197,41]
[424224826,1780673466000,-500.0,0.00035125,60]
[424224827,1780673466000,-500.0,0.00035125,60]
[424224824,1780673466000,-500.0,0.00035125,60]
[424224829,1780673466000,-530.0,0.00035147,10]
[424224832,1780673466000,-150.0,0.00035195,30]
[424224831,1780673466000,-7166.5335,0.00035158,2]
[424224833,1780673466000,-150.0,0.00035195,30]
[424224828,1780673466000,-791.896713,0.00035125,60]
[424224840,1780673466000,-151.0,0.00035213,4]
[424224838,1780673466000,-160.0,0.000352,13]
[424224834,1780673466000,-4206.936,0.00035197,41]
[424224852,1780673466000,-1000.0,0.00035243,30]
[424224861,1780673466000,-1285.80905085,0.00035283,2]
[424224850,1780673466000,-1060.2135349,0.00035213,20]
[424224839,1780673466000,-150.0,0.00035212,30]
[424224842,1780673466000,-1027.28041508,0.00035213,20]
[424224843,1780673466000,-1051.68904157,0.00035213,20]
[424224846,1780673466000,-1084.85791066,0.00035213,20]
[424224845,1780673466000,-1000.99468628,0.00035213,20]
[424224847,1780673466000,-1013.84141095,0.00035213,20]
[424224848,1780673466000,-1107.7638874,0.00035213,20]
[424224844,1780673466000,-1035.54287604,0.00035213,20]
[424224837,1780673466000,-150.0,0.00035197,30]
[424224849,1780673466000,-1070.17805339,0.00035213,20]
[424224841,1780673466000,-1003.84207313,0.00035213,20]
[424224926,1780673467000,-200.0,0.00035376,2]
[424224925,1780673467000,-200.0,0.00035376,2]
[424224942,1780673467000,-500.0,0.00035376,2]
[424224921,1780673467000,-200.0,0.00035376,2]
[424224928,1780673467000,-200.0,0.00035376,2]
[424224924,1780673467000,-200.0,0.00035376,2]
[424224917,1780673467000,-200.0,0.00035376,2]
[424224923,1780673467000,-200.0,0.00035376,2]
[424224927,1780673467000,-200.0,0.00035376,2]
[424224920,1780673467000,-200.0,0.00035376,2]
[424224930,1780673467000,-200.0,0.00035376,2]
[424224919,1780673467000,-200.0,0.00035376,2]
[424224929,1780673467000,-200.0,0.00035376,2]
[424224941,1780673467000,-500.0,0.00035376,2]
[424224955,1780673467000,-3817.0,0.00035381,30]
[424224931,1780673467000,-200.0,0.00035376,2]
[424224935,1780673467000,-200.0,0.00035376,2]
[424224936,1780673467000,-200.0,0.00035376,2]
[424224937,1780673467000,-200.0,0.00035376,2]
[424224934,1780673467000,-200.0,0.00035376,2]
[424224933,1780673467000,-200.0,0.00035376,2]
[424224939,1780673467000,-200.0,0.00035376,2]
[424224938,1780673467000,-200.0,0.00035376,2]
[424224940,1780673467000,-160.0,0.00035376,2]
[424224943,1780673467000,-500.0,0.00035376,2]
[424224947,1780673467000,-541.0,0.00035376,2]
[424224945,1780673467000,-500.0,0.00035376,2]
[424224954,1780673467000,-704.0,0.00035381,30]
[424224918,1780673467000,-200.0,0.00035376,2]
[424224932,1780673467000,-200.0,0.00035376,2]
[424224922,1780673467000,-200.0,0.00035376,2]
[424224885,1780673467000,-200.0,0.00035376,2]
[424224908,1780673467000,-200.0,0.00035376,2]
[424224948,1780673467000,-812.0,0.00035378,30]
[424224886,1780673467000,-200.0,0.00035376,2]
[424224887,1780673467000,-200.0,0.00035376,2]
[424224888,1780673467000,-200.0,0.00035376,2]
[424224892,1780673467000,-200.0,0.00035376,2]
[424224889,1780673467000,-200.0,0.00035376,2]
[424224891,1780673467000,-200.0,0.00035376,2]
[424224894,1780673467000,-200.0,0.00035376,2]
[424224890,1780673467000,-200.0,0.00035376,2]
[424224893,1780673467000,-200.0,0.00035376,2]
[424224895,1780673467000,-200.0,0.00035376,2]
[424224897,1780673467000,-200.0,0.00035376,2]
[424224900,1780673467000,-200.0,0.00035376,2]
[424224898,1780673467000,-200.0,0.00035376,2]
[424224916,1780673467000,-200.0,0.00035376,2]
[424224899,1780673467000,-200.0,0.00035376,2]
[424224896,1780673467000,-200.0,0.00035376,2]
[424224913,1780673467000,-200.0,0.00035376,2]
[424224903,1780673467000,-200.0,0.00035376,2]
[424224914,1780673467000,-200.0,0.00035376,2]
[424224902,1780673467000,-169.0,0.00035376,2]
[424224911,1780673467000,-200.0,0.00035376,2]
[424224909,1780673467000,-200.0,0.00035376,2]
[424224915,1780673467000,-200.0,0.00035376,2]
[424224910,1780673467000,-200.0,0.00035376,2]
[424224912,1780673467000,-200.0,0.00035376,2]
[424224905,1780673467000,-200.0,0.00035376,2]
[424224906,1780673467000,-200.0,0.00035376,2]
[424224904,1780673467000,-200.0,0.00035376,2]
[424224907,1780673467000,-200.0,0.00035376,2]
[424224901,1780673467000,-200.0,0.00035376,2]
[424224946,1780673467000,-500.0,0.00035376,2]
[424224949,1780673467000,-1136.0,0.00035378,30]
[424225012,1780673467000,-177.0,0.00035626,2]
[424224985,1780673467000,-2001.46869,0.0003555,67]
[424224988,1780673467000,-2056.0,0.00035589,120]
[424224987,1780673467000,-150.0,0.0003556,30]
[424224989,1780673467000,-1358.77255275,0.00035589,120]
[424224996,1780673467000,-2000.0,0.00035616,30]
[424224986,1780673467000,-2001.46868,0.0003555,67]
[424224992,1780673467000,-107925.3648907,0.0003561,2]
[424224990,1780673467000,-1358.77255275,0.00035589,120]
[424224994,1780673467000,-7197.41,0.00035616,2]
[424224993,1780673467000,-4520.46810798,0.0003561,2]
[424224991,1780673467000,-150.0,0.00035594,30]
[424224998,1780673467000,-924.72,0.00035616,120]
[424225004,1780673467000,-261.473768,0.00035616,2]
[424225007,1780673467000,-261.473768,0.00035616,2]
[424224984,1780673467000,-150.0,0.0003555,30]
[424225008,1780673467000,-261.473768,0.00035616,2]
[424225001,1780673467000,-261.473768,0.00035616,2]
[424225002,1780673467000,-261.473768,0.00035616,2]
[424225006,1780673467000,-261.473768,0.00035616,2]
[424224999,1780673467000,-151.0,0.00035616,5]
[424225000,1780673467000,-151.0,0.00035616,5]
[424225005,1780673467000,-261.473768,0.00035616,2]
[424225009,1780673467000,-512.46,0.00035616,2]
[424225010,1780673467000,-181.79,0.00035616,30]
[424225015,1780673467000,-150.0,0.00035638,30]
[424225014,1780673467000,-150.0,0.00035638,30]
[424225011,1780673467000,-200.0,0.00035618,10]
[424225013,1780673467000,-150.0,0.00035633,30]
[424225016,1780673467000,-150.0,0.00035651,30]
[424224944,1780673467000,-500.0,0.00035376,2]
[424225003,1780673467000,-261.473768,0.00035616,2]
[424224995,1780673467000,-464.61,0.00035616,30]
[424224997,1780673467000,-150.0,0.00035616,120]
[424224980,1780673467000,-206.31680697,0.00035538,30]
[424224951,1780673467000,-150.0,0.00035378,30]
[424224952,1780673467000,-3475.0,0.00035381,30]
[424224979,1780673467000,-7166.5335,0.00035532,2]
[424224953,1780673467000,-716.0,0.00035381,30]
[424224957,1780673467000,-7166.5335,0.00035407,2]
[424224968,1780673467000,-150.0,0.00035461,30]
[424224967,1780673467000,-150.0,0.00035461,30]
[424224969,1780673467000,-150.0,0.00035469,30]
[424224959,1780673467000,-150.0,0.00035423,30]
[424224956,1780673467000,-1000.0,0.00035404,30]
[424224965,1780673467000,-482.08,0.00035444,2]
[424224961,1780673467000,-152.0,0.00035425,7]
[424224964,1780673467000,-152.0,0.00035436,7]
[424224962,1780673467000,-2110.0,0.00035432,2]
[424224963,1780673467000,-177.94557612,0.00035432,7]
[424224950,1780673467000,-684.0,0.00035378,30]
[424224958,1780673467000,-150.0,0.00035417,30]
[424224981,1780673467000,-201.43511095,0.00035538,30]
[424224966,1780673467000,-208.84,0.0003546,69]
[424224974,1780673467000,-350.0,0.00035501,4]
[424224973,1780673467000,-16992.64812045,0.000355,30]
[424224978,1780673467000,-150.0,0.00035528,30]
[424224972,1780673467000,-461.0,0.00035493,30]
[424224983,1780673467000,-150.0,0.0003555,30]
[424224977,1780673467000,-1000.0,0.0003551,30]
[424224975,1780673467000,-350.0,0.00035502,6]
[424224982,1780673467000,-163.52506976,0.00035538,30]
[424224971,1780673467000,-1918.0,0.00035493,30]
[424224970,1780673467000,-917.0,0.00035493,30]
[424224960,1780673467000,-152.0,0.00035425,7]
[424224976,1780673467000,-150.0,0.00035505,30]
[424225068,1780673468000,-1000.0,0.00035906,2]
[424225071,1780673468000,-1000.0,0.00035906,2]
[424225056,1780673468000,-2000.0,0.000359,7]
[424225046,1780673468000,-500.0,0.0003587,2]
[424225054,1780673468000,-208.84,0.000359,98]
[424225050,1780673468000,-750.03430179,0.000359,120]
[424225049,1780673468000,-150.0,0.00035899,2]
[424225051,1780673468000,-246.75,0.000359,2]
[424225053,1780673468000,-160.0,0.000359,15]
[424225055,1780673468000,-1677.27345097,0.000359,2]
[424225067,1780673468000,-1000.0,0.00035906,2]
[424225048,1780673468000,-164.0,0.0003589,120]
[424225052,1780673468000,-160.0,0.000359,15]
[424225064,1780673468000,-1000.0,0.00035906,2]
[424225069,1780673468000,-1000.0,0.00035906,2]
[424225070,1780673468000,-1000.0,0.00035906,2]
[424225061,1780673468000,-150.0,0.00035904,30]
[424225060,1780673468000,-150.0,0.00035904,30]
[424225062,1780673468000,-151.0,0.00035906,14]
[424225072,1780673468000,-1000.0,0.00035906,2]
[424225066,1780673468000,-1000.0,0.00035906,2]
[424225063,1780673468000,-1000.0,0.00035906,2]
[424225074,1780673468000,-1000.0,0.00035906,2]
[424225085,1780673468000,-1000.0,0.00035906,2]
[424225084,1780673468000,-1000.0,0.00035906,2]
[424225086,1780673468000,-1000.0,0.00035906,2]
[424225075,1780673468000,-1000.0,0.00035906,2]
[424225057,1780673468000,-1973.79716009,0.000359,2]
[424225065,1780673468000,-1000.0,0.00035906,2]
[424225058,1780673468000,-1973.79716009,0.000359,2]
[424225035,1780673468000,-764.0,0.00035788,3]
[424225047,1780673468000,-1000.0,0.0003587,2]
[424225073,1780673468000,-1000.0,0.00035906,2]
[424225021,1780673468000,-1000.0,0.00035686,60]
[424225022,1780673468000,-886.98,0.000357,30]
[424225020,1780673468000,-150.0,0.00035683,30]
[424225019,1780673468000,-530.0,0.00035681,11]
[424225017,1780673468000,-7166.5335,0.00035656,2]
[424225018,1780673468000,-1121.85257231,0.00035664,60]
[424225024,1780673468000,-150.0,0.00035727,30]
[424225032,1780673468000,-299.50806145,0.00035773,120]
[424225025,1780673468000,-150.0,0.00035727,30]
[424225027,1780673468000,-150.0,0.00035741,30]
[424225023,1780673468000,-300.0,0.00035704,39]
[424225029,1780673468000,-150.0,0.00035756,30]
[424225059,1780673468000,-1915.43646842,0.000359,2]
[424225034,1780673468000,-7166.5335,0.00035781,2]
[424225033,1780673468000,-1262.79580771,0.00035773,120]
[424225026,1780673468000,-150.0,0.00035739,30]
[424225031,1780673468000,-150.0,0.00035771,30]
[424225030,1780673468000,-1000.0,0.00035763,60]
[424225037,1780673468000,-3641.0,0.00035798,2]
[424225036,1780673468000,-3523.4,0.00035798,2]
[424225038,1780673468000,-165.0,0.0003581,60]
[424225040,1780673468000,-150.0,0.00035816,30]
[424225039,1780673468000,-163.0,0.0003581,60]
[424225041,1780673468000,-150.0,0.00035816,30]
[424225044,1780673468000,-152.66829888,0.00035855,7]
[424225043,1780673468000,-150.0,0.00035844,30]
[424225045,1780673468000,-150.0,0.0003586,30]
[424225028,1780673468000,-150.0,0.00035753,120]
[424225077,1780673468000,-1000.0,0.00035906,2]
[424225042,1780673468000,-150.0,0.00035832,30]
[424225076,1780673468000,-1000.0,0.00035906,2]
[424225114,1780673468000,-1971.76659806,0.00035951,2]
[424225142,1780673468000,-405.96920349,0.00036,120]
[424225118,1780673468000,-318.07,0.00036,14]
[424225117,1780673468000,-150.0,0.00035993,30]
[424225121,1780673468000,-901.84315803,0.00036,2]
[424225115,1780673468000,-180000.0,0.00035987,120]
[424225119,1780673468000,-6650.0,0.00036,5]
[424225122,1780673468000,-233.63874287,0.00036,2]
[424225123,1780673468000,-191.099727,0.00036,15]
[424225120,1780673468000,-25142.95726318,0.00036,2]
[424225124,1780673468000,-151.0,0.00036,60]
[424225126,1780673468000,-461.103711,0.00036,15]
[424225131,1780673468000,-323.74083089,0.00036,120]
[424225116,1780673468000,-150.0,0.00035993,30]
[424225132,1780673468000,-240.54220588,0.00036,120]
[424225134,1780673468000,-1380.87818188,0.00036,120]
[424225137,1780673468000,-579.65091334,0.00036,120]
[424225135,1780673468000,-278.51312383,0.00036,120]
[424225136,1780673468000,-860.34177745,0.00036,120]
[424225127,1780673468000,-205.23463841,0.00036,120]
[424225129,1780673468000,-820.72142025,0.00036,120]
[424225125,1780673468000,-619.407383,0.00036,15]
[424225128,1780673468000,-1910.38886028,0.00036,120]
[424225138,1780673468000,-266.02175358,0.00036,120]
[424225140,1780673468000,-1327.85688603,0.00036,120]
[424225139,1780673468000,-353.22116195,0.00036,120]
[424225141,1780673468000,-466.06143726,0.00036,120]
[424225080,1780673468000,-1000.0,0.00035906,2]
[424225133,1780673468000,-1492.94465785,0.00036,120]
[424225113,1780673468000,-1000.0,0.00035951,2]
[424225130,1780673468000,-441.83431517,0.00036,120]
[424225110,1780673468000,-400.0,0.00035951,2]
[424225078,1780673468000,-1000.0,0.00035906,2]
[424225112,1780673468000,-421.92629531,0.00035951,2]
[424225081,1780673468000,-1000.0,0.00035906,2]
[424225083,1780673468000,-1000.0,0.00035906,2]
[424225079,1780673468000,-1000.0,0.00035906,2]
[424225087,1780673468000,-190.87519934,0.00035906,2]
[424225099,1780673468000,-2110.0,0.00035932,2]
[424225092,1780673468000,-2001.46868,0.00035906,72]
[424225089,1780673468000,-2001.46868,0.00035906,72]
[424225091,1780673468000,-2001.46868,0.00035906,72]
[424225098,1780673468000,-1400.0,0.00035932,60]
[424225090,1780673468000,-2001.46869,0.00035906,72]
[424225093,1780673468000,-150.0,0.00035923,30]
[424225097,1780673468000,-500.0,0.00035932,60]
[424225082,1780673468000,-1000.0,0.00035906,2]
[424225096,1780673468000,-500.0,0.00035932,60]
[424225109,1780673468000,-400.0,0.00035951,2]
[424225094,1780673468000,-250.42505036,0.00035931,120]
[424225103,1780673468000,-150.0,0.00035948,30]
[424225104,1780673468000,-150.0,0.0003595,30]
[424225102,1780673468000,-600.0,0.00035945,30]
[424225107,1780673468000,-500.0,0.00035951,2]
[424225108,1780673468000,-500.0,0.00035951,2]
[424225100,1780673468000,-177.94557611,0.00035932,14]
[424225095,1780673468000,-5494.93721222,0.00035932,30]
[424225088,1780673468000,-7166.5335,0.00035906,2]
[424225105,1780673468000,-150.0,0.00035951,2]
[424225111,1780673468000,-407.0,0.00035951,2]
[424225106,1780673468000,-150.0,0.00035951,2]
[424225101,1780673468000,-165.45119926,0.0003594,2]
[424225176,1780673469000,-500.0,0.00036139,44]
[424225171,1780673469000,-164.231698,0.00036135,120]
[424225172,1780673469000,-150.0,0.00036135,120]
[424225175,1780673469000,-200.0,0.00036139,44]
[424225178,1780673469000,-3994.5,0.00036153,30]
[424225188,1780673469000,-151.96771095,0.00036164,120]
[424225177,1780673469000,-1050823.2078,0.00036145,30]
[424225179,1780673469000,-1997.75,0.00036154,30]
[424225173,1780673469000,-150.0,0.00036135,120]
[424225180,1780673469000,-151.0,0.00036155,30]
[424225174,1780673469000,-151.0,0.00036139,44]
[424225186,1780673469000,-7166.5335,0.00036155,2]
[424225185,1780673469000,-151.0,0.00036155,30]
[424225187,1780673469000,-150.0,0.00036161,30]
[424225182,1780673469000,-151.0,0.00036155,30]
[424225184,1780673469000,-151.0,0.00036155,30]
[424225183,1780673469000,-151.0,0.00036155,30]
[424225190,1780673469000,-2004.56,0.00036164,120]
[424225191,1780673469000,-488.83,0.00036164,120]
[424225192,1780673469000,-724.44,0.00036164,120]
[424225197,1780673469000,-150.0,0.0003617,30]
[424225170,1780673469000,-166.22,0.00036128,60]
[424225198,1780673469000,-150.0,0.0003617,30]
[424225181,1780673469000,-151.0,0.00036155,30]
[424225165,1780673469000,-155.73,0.00036094,60]
[424225163,1780673469000,-150.0,0.00036081,30]
[424225167,1780673469000,-150.0,0.00036104,30]
[424225189,1780673469000,-2197.69,0.00036164,120]
[424225148,1780673469000,-433.47194799,0.00036,120]
[424225143,1780673469000,-565.72421072,0.00036,120]
[424225147,1780673469000,-890.90734959,0.00036,120]
[424225145,1780673469000,-602.88147334,0.00036,120]
[424225149,1780673469000,-151.0,0.00036,7]
[424225144,1780673469000,-306.50544473,0.00036,120]
[424225150,1780673469000,-1328.69,0.00036,7]
[424225146,1780673469000,-1451.60412161,0.00036,120]
[424225155,1780673469000,-150.0,0.00036013,30]
[424225160,1780673469000,-150.0,0.00036037,30]
[424225168,1780673469000,-209.98,0.00036108,60]
[424225157,1780673469000,-166.22,0.00036028,60]
[424225153,1780673469000,-800.0,0.00036,2]
[424225152,1780673469000,-1142.98,0.00036,14]
[424225156,1780673469000,-150.0,0.00036027,120]
[424225151,1780673469000,-1496.65364586,0.00036,120]
[424225159,1780673469000,-2571.07,0.00036035,10]
[424225158,1780673469000,-7166.5335,0.0003603,2]
[424225162,1780673469000,-150.0,0.00036055,30]
[424225161,1780673469000,-250.10442724,0.00036037,60]
[424225164,1780673469000,-150.0,0.00036081,30]
[424225166,1780673469000,-2037.72,0.00036096,120]
[424225169,1780673469000,-150.0,0.00036126,30]
[424225154,1780673469000,-1061.55801728,0.00036,7]
[424225196,1780673469000,-152.0,0.00036169,30]
[424225213,1780673469000,-166.22888545,0.00036228,60]
[424225195,1780673469000,-165.0,0.00036165,11]
[424225223,1780673469000,-2534.46,0.00036299,10]
[424225234,1780673469000,-150.0,0.00036376,30]
[424225225,1780673469000,-150.0,0.00036303,30]
[424225226,1780673469000,-201.41592514,0.00036305,60]
[424225228,1780673469000,-157.363358,0.00036336,11]
[424225227,1780673469000,-190.02577709,0.00036317,60]
[424225233,1780673469000,-150.0,0.00036371,30]
[424225229,1780673469000,-2339.0,0.00036339,11]
[424225241,1780673469000,-211.073153,0.000364,30]
[424225237,1780673469000,-51350.0,0.000364,30]
[424225236,1780673469000,-155.73,0.00036394,60]
[424225232,1780673469000,-150.0,0.00036347,30]
[424225235,1780673469000,-150.0,0.00036392,30]
[424225238,1780673469000,-211.073153,0.000364,30]
[424225240,1780673469000,-211.073153,0.000364,30]
[424225243,1780673469000,-3001.961721,0.000364,28]
[424225244,1780673469000,-3001.961721,0.000364,28]
[424225239,1780673469000,-211.073153,0.000364,30]
[424225245,1780673469000,-3001.961721,0.000364,28]
[424225246,1780673469000,-151.0,0.000364,30]
[424225247,1780673469000,-151.0,0.000364,30]
[424225250,1780673469000,-1024.56049,0.000364,7]
[424225249,1780673469000,-5206.773793,0.000364,30]
[424225248,1780673469000,-151.0,0.000364,30]
[424225194,1780673469000,-164.0,0.00036165,11]
[424225231,1780673469000,-150.0,0.00036347,30]
[424225242,1780673469000,-3001.961721,0.000364,28]
[424225224,1780673469000,-512.94,0.00036301,7]
[424225230,1780673469000,-208.84,0.0003634,114]
[424225193,1780673469000,-849.29,0.00036164,120]
[424225200,1780673469000,-155.73,0.00036194,60]
[424225209,1780673469000,-190.02,0.00036217,60]
[424225208,1780673469000,-530.0,0.00036214,11]
[424225210,1780673469000,-250.0,0.00036226,2]
[424225202,1780673469000,-157.756598,0.000362,16]
[424225201,1780673469000,-150.0,0.00036195,30]
[424225203,1780673469000,-160.347431,0.000362,16]
[424225207,1780673469000,-150.0,0.00036214,30]
[424225206,1780673469000,-151.0,0.00036213,4]
[424225205,1780673469000,-209.98213618,0.00036208,60]
[424225199,1780673469000,-1609.0,0.00036185,11]
[424225211,1780673469000,-250.0,0.00036226,2]
[424225218,1780673469000,-1227.0,0.00036272,2]
[424225204,1780673469000,-201.4,0.00036205,60]
[424225220,1780673469000,-150.0,0.00036286,30]
[424225221,1780673469000,-155.73,0.00036294,60]
[424225222,1780673469000,-158.09479865,0.00036295,2]
[424225219,1780673469000,-7166.5335,0.0003628,2]
[424225214,1780673469000,-150.0,0.00036259,30]
[424225215,1780673469000,-150.0,0.00036259,30]
[424225216,1780673469000,-150.0,0.00036266,30]
[424225212,1780673469000,-268.81668809,0.00036226,2]
[424225217,1780673469000,-437.0,0.00036272,2]
[424225292,1780673470000,-897.541149,0.00036482,30]
[424225296,1780673470000,-991.41694,0.00036482,30]
[424225286,1780673470000,-151.0,0.00036482,30]
[424225299,1780673470000,-1445.79743,0.00036482,30]
[424225298,1780673470000,-1445.79743,0.00036482,30]
[424225294,1780673470000,-897.541149,0.00036482,30]
[424225281,1780673470000,-164.0,0.00036482,11]
[424225297,1780673470000,-1445.79743,0.00036482,30]
[424225293,1780673470000,-991.41694,0.00036482,30]
[424225287,1780673470000,-151.0,0.00036482,30]
[424225284,1780673470000,-151.0,0.00036482,30]
[424225291,1780673470000,-991.41694,0.00036482,30]
[424225295,1780673470000,-991.41694,0.00036482,30]
[424225290,1780673470000,-897.541149,0.00036482,30]
[424225309,1780673470000,-177.94557612,0.0003651,7]
[424225289,1780673470000,-897.541149,0.00036482,30]
[424225300,1780673470000,-1445.79743,0.00036482,30]
[424225303,1780673470000,-1592.0,0.00036485,11]
[424225307,1780673470000,-2000.0,0.000365,60]
[424225304,1780673470000,-1592.0,0.00036485,11]
[424225301,1780673470000,-151.0,0.00036482,30]
[424225302,1780673470000,-2321.0,0.00036485,11]
[424225310,1780673470000,-150.0,0.00036525,30]
[424225308,1780673470000,-395.175808,0.000365,16]
[424225305,1780673470000,-350.0,0.00036492,41]
[424225311,1780673470000,-150.0,0.00036525,30]
[424225306,1780673470000,-155.73,0.00036494,60]